Cogmind - Beta 11.1 @@@ ROGUE MODE // 2022.05.11 @ 12:27:05 Player: Boris Result: Destroyed self with Improved Grenade Launcher Performance ------------- Evolutions (1) 500 Regions Visited (6) 1200 Robots Destroyed (50) 250 Value Destroyed (770) 770 Prototype IDs (8) 160 Alien Tech Used (0) 0 Bonus (120) 120 TOTAL SCORE: 3000 Bonus ------- High Alert Combat Kills 58 Follower Combat Kills 155 Friendly Fire -93 Cogmind --------- Core Integrity 0/400 Matter 287/300 Energy 100/100 System Corruption 9% Temperature Cool (0) Movement Walking (126) Location -8/Mines Parts ------- > --- POWER (1) -------- (None) > --- PROPULSION (3) --- Aluminum Leg Makeshift Leg Advanced Myomer Leg > --- UTILITY (2) ------ High-capacity Storage Unit Launcher Guidance Computer > --- WEAPON (3) ------- Improved Assault Rifle Improved Grenade Launcher > --- INVENTORY (20) --- Ion Engine Ion Engine Cold Fusion Reactor Light Neutrino Core Reinforced Fission Core Light Treads Light Treads Light Treads Light Treads Light Treads Experimental Heat Sink Large Matter Pod (150) Structural Scanner Machine Analyzer Transport Network Coupler Transport Network Coupler Advanced Weapon Cycler Shock Absorption System EX Chip 2 Deploy-a-Sentry Peak State ------------ > --- POWER ------------ Light Neutrino Core > --- PROPULSION ------- Light Treads Makeshift Leg Advanced Myomer Leg > --- UTILITY ---------- High-capacity Storage Unit Launcher Guidance Computer > --- WEAPON ----------- Improved Assault Rifle Improved Grenade Launcher > --- INVENTORY -------- Ion Engine Ion Engine Reinforced Fission Core Light Treads Light Treads Light Treads Light Treads Experimental Heat Sink Large Matter Pod Structural Scanner Machine Analyzer Transport Network Coupler Transport Network Coupler Advanced Weapon Cycler Shock Absorption System Deploy-a-Sentry [Rating: 35] Favorites ----------- Power Ion Engine Engine Ion Engine Power Core Light Neutrino Core Reactor Cold Fusion Reactor Propulsion Light Treads Treads Light Treads Leg Advanced Myomer Leg Wheel Wheel Utility High-capacity Storage Unit Device Seismic Detector Storage High-capacity Storage Unit Processor Launcher Guidance Computer Protection Light Armor Plating Weapon Improved Assault Rifle Energy Gun Medium Laser Ballistic Gun Improved Assault Rifle Ballistic Cannon Assault Cannon Launcher Improved Grenade Launcher Build | -11 -10 -10 -9 -9 -9 -8 ------- Run | Scr Mat Min Mat Min Exi Min Slots Evolved 2 | . . . 2 . . . Power . | . . . . . . . Propulsion 1 | . . . 1 . . . Utility . | . . . . . . . Weapon 1 | . . . 1 . . . Parts Attached 77 | 6 5 4 16 20 26 . Power 9 | 1 . . 3 2 3 . Engine 7 | 1 . . 3 2 1 . Core 1 | . . . . . 1 . Reactor 1 | . . . . . 1 . Propulsion 20 | 2 1 . 3 6 8 . Treads 9 | 1 . . . 4 4 . Leg 4 | . . . . . 4 . Wheel 7 | 1 1 . 3 2 . . Hover . | . . . . . . . Flight . | . . . . . . . Utility 15 | 1 4 . 1 5 4 . Device 3 | . 2 . . 1 . . Storage 3 | 1 1 . . . 1 . Processor 1 | . . . . . 1 . Hackware . | . . . . . . . Protection 8 | . 1 . 1 4 2 . Artifact . | . . . . . . . Weapon 33 | 2 . 4 9 7 11 . Energy Gun 1 | 1 . . . . . . Energy Cannon . | . . . . . . . Ballistic Gun 10 | 1 . . 1 3 5 . Ballistic Cannon 14 | . . 2 7 2 3 . Launcher 8 | . . 2 1 2 3 . Special Weapon . | . . . . . . . Impact Weapon . | . . . . . . . Slashing Weapon . | . . . . . . . Piercing Weapon . | . . . . . . . Special Melee Weapon . | . . . . . . . Unidentified Prototypes 6 | . . . 2 1 3 . Corrupted Parts 1 | . . . . . 1 . System Corruption 8 | . . . . . 8 . Parts Lost 28 | . . . . 11 17 . Power 4 | . . . . 2 2 . Propulsion 9 | . . . . 5 4 . Utility 6 | . . . . 3 3 . Weapon 9 | . . . . 1 8 . Highest Loss Streak 14 | . . . . 6 14 . To Critical Strikes 4 | . . . . 4 . . Average Slot Usage (%) 94 | . 98 100 100 97 79 . Engine 9 | . 14 14 11 10 4 . Treads 13 | . 14 14 11 15 11 . Leg 2 | . . . . . 11 . Wheel 14 | . 14 14 22 16 6 . Storage 11 | . 14 14 11 11 10 . Processor 1 | . . . . . 7 . Protection 9 | . 7 14 11 11 2 . Energy Gun 3 | . 14 8 . . . . Ballistic Gun 11 | . 14 3 . 21 16 . Ballistic Cannon 10 | . . 5 33 11 . . Launcher 4 | . . 9 . . 7 . Naked Turns . | . . . . . . . Heaviest Build 67 | 14 52 56 66 67 59 . Greatest Support 60 | 20 16 16 26 60 60 . Greatest Overweight (x) 5 | 1 3 3 3 5 4 . Average Overweight (x) 2 | . 1 3 2 2 . . Largest Inventory Capacity 20 | 8 20 20 20 20 20 . Average Capacity 19 | 7 13 20 20 20 19 . Most Carried 20 | 5 17 19 20 20 20 . Average Carried 16 | 3 9 18 19 18 16 . Final Capacity 20 | 8 20 20 20 20 20 20 Final Carried 20 | 5 17 18 20 19 20 20 Class Distribution -------------------- 36% | Mutant 31% | Tank 16% | Scavenger-Mutant 14% | Scavenger-Tank Dominant Class ---------------- Mutant | -10/Materials Mutant | -10/Mines Tank | -9/Materials Tank | -9/Mines Scavenger-Mutant | -9/Exiles Scavenger-Mutant | -8/Mines Resources | -11 -10 -10 -9 -9 -9 -8 ----------- Run | Scr Mat Min Mat Min Exi Min Matter Collected 1976 | 254 89 111 476 498 548 . Remotely . | . . . . . . . Salvage Created 1223 | 97 97 146 371 208 304 . Parts 97 | 7 4 11 30 24 21 . Haulers Intercepted 4 | . 1 . 3 . . . Recyclers Shooed . | . . . . . . . Parts Field Recycled . | . . . . . . . Retrieved Matter . | . . . . . . . Parts Self-Destructed . | . . . . . . . Prevented . | . . . . . . . Kills | -11 -10 -10 -9 -9 -9 -8 ------- Run | Scr Mat Min Mat Min Exi Min Combat Hostiles Destroyed 39 | . 1 9 11 11 7 . Guns 5 | . 1 . . 2 2 . Cannons 13 | . . 3 9 1 . . AOE 21 | . . 6 2 8 5 . Classes Destroyed 12 | 2 2 2 1 2 3 . Worker 2 | . . 1 . 1 . . Builder 1 | . . . . 1 . . Tunneler 1 | 1 . . . . . . Hauler 4 | . 1 . 3 . . . Recycler 2 | 1 . 1 . . . . Turret 1 | . . . . . 1 . Swarmer 23 | . . 9 6 8 . . Grunt 3 | . 1 . 2 . . . Sentry 3 | . . . 3 . . . Demolisher 2 | . . . . 2 . . Zionite 6 | . . . . . 6 . Assembled 7 | . . . . . 7 . Best Kill Streak 8 | 2 1 7 4 8 7 . Combat Bots Only 8 | . 1 6 3 8 7 . Max Kills in Single Turn 4 | 1 1 4 2 4 4 . Gunslinging . | . . . . . . . Exploded 4 | . . 3 2 4 4 . Melee . | . . . . . . . Uniques/NPCs Destroyed 3 | . . . . 1 2 . 8R-AWN (-9/Mines) EX-DEC (-9/Exiles) EX-BIN (-9/Exiles) Combat | -11 -10 -10 -9 -9 -9 -8 -------- Run | Scr Mat Min Mat Min Exi Min Damage Taken 4095 | . 33 97 300 1581 2066 18 Core 415 | . 12 . 34 82 269 18 Absorbed by Shields . | . . . . . . . Regen/Repaired (Parts) 40 | . . . 40 . . . Core Remaining (%) 97 | 100 . 95 . . . . Volleys Fired 154 | 6 5 11 25 39 67 1 Largest 3 | 2 2 2 3 3 3 1 Hottest 132 | 70 70 78 132 132 111 36 Shots Fired 308 | 12 10 13 71 111 90 1 Gun 181 | 12 10 2 . 93 64 . Cannon 101 | . . 7 69 15 10 . Launcher 26 | . . 4 2 3 16 1 Special . | . . . . . . . Kinetic 270 | 6 5 8 69 108 74 . Thermal 12 | 6 5 1 . . . . Explosive 26 | . . 4 2 3 16 1 Electromagnetic . | . . . . . . . Robot Hit Streak 10 | 2 10 4 5 10 10 3 Robot Miss Streak 5 | 3 . 3 5 2 3 . Penetration Max . | . . . . . . . Secondary Targets . | . . . . . . . Shots Hit Robots 171 | 5 9 7 28 79 42 1 Core Hits 98 | 2 4 10 13 32 36 1 Critical Kills . | . . . . . . . Critical Parts Destroyed . | . . . . . . . Critical Strikes 5 | . 1 . 4 . . . Burn 1 | . 1 . . . . . Blast 4 | . . . 4 . . . Melee Attacks . | . . . . . . . Impact . | . . . . . . . Slashing . | . . . . . . . Piercing . | . . . . . . . Sneak Attacks . | . . . . . . . Combat Hostiles . | . . . . . . . Follow-up Attacks . | . . . . . . . Damage Inflicted 4938 | 63 120 588 770 1711 1628 58 Guns 1749 | 63 120 13 . 1046 507 . Cannons 1100 | . . 112 681 253 54 . Explosions 1874 | . . 463 89 379 885 58 Melee . | . . . . . . . Ramming 215 | . . . . 33 182 . Kinetic 2771 | 50 68 112 681 1299 561 . Thermal 288 | 13 52 167 . 56 . . Explosive 1664 | . . 309 89 323 885 58 Electromagnetic . | . . . . . . . Impact . | . . . . . . . Slashing . | . . . . . . . Piercing . | . . . . . . . Highest Corruption 9 | . . . . . 9 . Average Corruption 6 | . . . . . 6 . Corruption Purged . | . . . . . . . Corruption Blocked . | . . . . . . . Effects 10 | . . . . . 10 . Matter Fused 3 | . . . . . 3 . Energy Discharges 3 | . . . . . 3 . Data Loss (minor) 2 | . . . . . 2 . Alerts 1 | . . . . . 1 . Weapon Failures 1 | . . . . . 1 . Overload Shots . | . . . . . . . Overflow Damage 97 | . . 34 . 15 48 . Projectiles 31 | . . 16 . 15 . . Explosions 36 | . . 18 . . 18 . Melee 30 | . . . . . 30 . Knockbacks 12 | . . 1 5 3 3 . Impact 3 | . . . . . 3 . Kinetic 9 | . . 1 5 3 . . Secondary . | . . . . . . . Self-Inflicted Damage 186 | . . 32 54 44 . 56 Shots 5 | . . 1 1 2 . 1 Rammed 21 | . . . . 9 12 . Targets Rammed 53 | . . . . 9 44 . Kicked 30 | . . . . . 30 . Crushed 2 | . . . . . 2 . Highest Temperature 341 | 45 72 27 341 328 107 . Average Temperature 68 | 20 30 7 87 85 32 . Received Heat Transfer 103 | . 18 . 45 . 40 . Effects 5 | . . . 2 3 . . Energy Bleed 1 | . . . 1 . . . Interference 3 | . . . . 3 . . Short Circuit 1 | . . . 1 . . . Siege Activations . | . . . . . . . Robots Corrupted . | . . . . . . . Combat Hostiles . | . . . . . . . Parts Fried 2 | . . . . . 2 . Impact Corruptions 20 | . . . . . 20 . Robots Melted . | . . . . . . . Combat Hostiles . | . . . . . . . Parts Melted 1 | . 1 . . . . . Heat Transferred 496 | 37 222 187 . 50 . . Parts Sabotaged . | . . . . . . . Parts Stolen . | . . . . . . . Parts Stripped . | . . . . . . . Power Chain Reactions . | . . . . . . . Missiles Intercepted . | . . . . . . . Alert | -11 -10 -10 -9 -9 -9 -8 ------- Run | Scr Mat Min Mat Min Exi Min Peak Influence 637 | 10 140 379 611 637 . . Initial 238 | . 6 54 147 238 . . Average 297 | 4 91 172 335 462 . . Maximum Alert Level 2 | . . 1 2 2 . . Low Security (%) 35 | 100 100 57 24 . . . Level 1 41 | . . 42 47 54 . . Level 2 22 | . . . 28 45 . . Level 3 . | . . . . . . . Level 4 . | . . . . . . . Level 5 . | . . . . . . . High Security . | . . . . . . . Max Security . | . . . . . . . Squads Dispatched 5 | . 3 . 2 . . . Investigation 4 | . 3 . 1 . . . Extermination . | . . . . . . . Reinforcement 1 | . . . 1 . . . Assault . | . . . . . . . Garrison . | . . . . . . . Intercept . | . . . . . . . Searches Triggered . | . . . . . . . Construction Impeded . | . . . . . . . Haulers Reinforced . | . . . . . . . Active Scanning Responses . | . . . . . . . Cargo Convoy Interrupts . | . . . . . . . Stealth | -11 -10 -10 -9 -9 -9 -8 --------- Run | Scr Mat Min Mat Min Exi Min Distress Signals 1 | . . . . 1 . . Communications Jammed . | . . . . . . . Distress Signals . | . . . . . . . Times Spotted 75 | . 3 8 17 11 36 . Peak Tracking Total 8 | . 1 4 4 4 8 . Tactical Retreats 16 | . . . . . 16 . Traps | -11 -10 -10 -9 -9 -9 -8 ------- Run | Scr Mat Min Mat Min Exi Min Traps Triggered 2 | . 1 . 1 . . . Indirectly . | . . . . . . . Trap Hack Attempts . | . . . . . . . Triggered . | . . . . . . . Disarmed . | . . . . . . . Reprogrammed . | . . . . . . . Reused . | . . . . . . . Traps Extracted . | . . . . . . . Installed . | . . . . . . . Triggered . | . . . . . . . Machines | -11 -10 -10 -9 -9 -9 -8 ---------- Run | Scr Mat Min Mat Min Exi Min Machines Disabled 18 | . . 3 1 6 8 . Max in Single Turn 5 | . . 2 1 5 2 . Machines Sabotaged . | . . . . . . . Garrisons Compromised . | . . . . . . . Overloaded Fab Kills . | . . . . . . . Hacking | -11 -10 -10 -9 -9 -9 -8 --------- Run | Scr Mat Min Mat Min Exi Min Machines Accessed 9 | . 5 . 2 1 1 . Terminals 5 | . 3 . 1 1 . . Fabricators . | . . . . . . . Repair Stations 1 | . . . 1 . . . Recycling Units 2 | . 2 . . . . . Scanalyzers . | . . . . . . . Garrison Access . | . . . . . . . Total Hacks 20 | . 12 . 4 3 1 . Successful 11 | . 5 . 3 2 1 . Failed 9 | . 7 . 1 1 . . Catastrophic . | . . . . . . . Database Lockouts . | . . . . . . . Manual 12 | . 8 . . 4 . . Terminals 13 | . 9 . 1 3 . . Fabricators . | . . . . . . . Repair Stations 3 | . . . 3 . . . Recycling Units 3 | . 3 . . . . . Scanalyzers . | . . . . . . . Garrison Access . | . . . . . . . Terminal Hacks 7 | . 3 . 1 2 1 . Record 1 | . . . . . 1 . Robot Analysis 3 | . 1 . . 2 . . Prototype ID Bank 1 | . 1 . . . . . Branch Access Points 2 | . 1 . 1 . . . Fabricator Hacks . | . . . . . . . Repair Station Hacks 2 | . . . 2 . . . Scan Component 1 | . . . 1 . . . Repair 1 | . . . 1 . . . Recycling Unit Hacks . | . . . . . . . Scanalyzer . | . . . . . . . Garrison Access Hacks . | . . . . . . . Unauthorized Hacks 2 | . 2 . . . . . Terminals . | . . . . . . . Fabricators . | . . . . . . . Repair Stations . | . . . . . . . Recycling Units 2 | . 2 . . . . . Tunnel 2 | . 2 . . . . . Scanalyzers . | . . . . . . . Garrison Access . | . . . . . . . Data Cores Recovered . | . . . . . . . Used . | . . . . . . . Hacking Detections 6 | . 3 . 2 1 . . Full Trace Events . | . . . . . . . Feedback Events . | . . . . . . . Feedback Blocked . | . . . . . . . Robot Schematics Acquired . | . . . . . . . Robots Built . | . . . . . . . Authchips . | . . . . . . . Time . | . . . . . . . Total Robot Build Rating . | . . . . . . . Part Schematics Acquired . | . . . . . . . Parts Built . | . . . . . . . Authchips . | . . . . . . . Time . | . . . . . . . Total Part Build Rating . | . . . . . . . Parts Repaired 1 | . . . 1 . . . Time 26 | . . . 26 . . . Parts Recycled . | . . . . . . . Recycled Matter . | . . . . . . . Retrieved Matter . | . . . . . . . Retrieved Components . | . . . . . . . Parts Scanalyzed . | . . . . . . . Part Schematics Acquired . | . . . . . . . Parts Damaged . | . . . . . . . Bothacking | -11 -10 -10 -9 -9 -9 -8 ------------ Run | Scr Mat Min Mat Min Exi Min Used RIF Installer . | . . . . . . . Robots Hacked . | . . . . . . . Non-combat . | . . . . . . . Combat . | . . . . . . . Robot Hacks Applied . | . . . . . . . Relay Couplers Released . | . . . . . . . Fabnet Peak Effective % . | . . . . . . . Robots Rewired . | . . . . . . . Allies Hacked . | . . . . . . . Hacks Repelled . | . . . . . . . Allies | -11 -10 -10 -9 -9 -9 -8 -------- Run | Scr Mat Min Mat Min Exi Min Total Allies 3 | . . 3 . . . . Largest Group 3 | . . 3 3 . . . Highest-Rated Group 40 | . . 40 40 . . . Highest-Rated Ally 16 | . . 16 16 . . . Total Orders . | . . . . . . . Ally Attacks 40 | . . . 40 . . . Total Damage 367 | . . . 367 . . . Kills 8 | . . . 8 . . . Allies Corrupted . | . . . . . . . Allies Melted . | . . . . . . . Intel | -11 -10 -10 -9 -9 -9 -8 ------- Run | Scr Mat Min Mat Min Exi Min Robot Analysis Total 3 | . 1 . . 2 . . Derelict Logs Recovered 1 | . . . . 1 . . Drone Launches . | . . . . . . . Drone Recoveries . | . . . . . . . Exploration | -11 -10 -10 -9 -9 -9 -8 ------------- Run | Scr Mat Min Mat Min Exi Min Turns Passed 3780 | 75 341 778 682 993 911 . Spaces Moved 2404 | 46 271 515 427 661 484 . Core 2 | 2 . . . . . . Treads 117 | 4 . . . 42 71 . Legs 231 | . . . . . 231 . Wheels 2054 | 40 271 515 427 619 182 . Hover . | . . . . . . . Flight . | . . . . . . . Fastest Speed 50 | 50 95 145 120 110 110 . Average Speed 127 | 95 113 145 121 123 129 . Slowest Speed 320 | 160 145 145 125 240 320 . Overloaded Moves . | . . . . . . . Propulsion Burnouts . | . . . . . . . Robots Hopped . | . . . . . . . Cave-ins Triggered . | . . . . . . . Exploration Rate (%) 52 | 3 51 97 26 99 85 3 Regions Visited 6 Branch Regions 4 Pre-discovered Areas 5 | . 2 1 . 1 1 . Known Exits Taken 2 | . 1 . 1 . . . Unknown Exits Taken 4 | 1 . 1 . 1 1 . Scrap Searched 2 | . . 1 . 1 . . Spaces Dug 11 | . . . . 8 3 . Terrain Destroyed 172 | . . 35 30 46 61 . Melee . | . . . . . . . Projectile 13 | . . . 7 3 3 . AOE 159 | . . 35 23 43 58 . Terrain Rammed . | . . . . . . . Walls Destroyed . | . . . . . . . Machines Disabled . | . . . . . . . Actions | -11 -10 -10 -9 -9 -9 -8 --------- Run | Scr Mat Min Mat Min Exi Min Total 2821 | 62 293 532 548 741 644 1 Wait 38 | . . . 32 5 1 . Move 2398 | 45 270 514 426 660 483 . Hop . | . . . . . . . Pick Up 65 | 5 12 2 25 7 14 . Fast Attach 21 | 6 1 . 2 3 9 . Attach 29 | . . . 9 9 11 . Detach 4 | . . . . 1 3 . Swap 27 | . 4 4 5 8 6 . Drop 28 | . 1 1 24 . 2 . Fire 154 | 6 5 11 25 39 67 1 Melee . | . . . . . . . Ram . | . . . . . . . Kick 30 | . . . . . 30 . Crush 23 | . . . . 9 14 . Escape Stasis . | . . . . . . . Rewire 4 | . . . . . 4 . Trap . | . . . . . . . Miscellaneous . | . . . . . . . Route ------- -11/Scrapyard -10/Materials (discovered 3 exits: *Mat x2 / *Min) -10/Mines -9/Materials (discovered 4 exits: *Min x2 / *Sto x2) -9/Mines (discovered 3 exits: [*Mat x2] / *Exi) -9/Exiles (discovered 2 exits: [*Min x2]) -8/Mines History --------- Turn | Location | Event 6 | -11/Scrapyard | Discovered new exit (range 15) 76 | -11/Scrapyard | Entered Materials 174 | -10/Materials | Identified exit to Mines 234 | -10/Materials | Discovered new exit (range 9) 304 | -10/Materials | Build established: Mutant 308 | -10/Materials | Discovered new exit (range 11) 417 | -10/Materials | Entered Mines 418 | -10/Mines | Learned location of Storage (-9) 668 | -10/Mines | A weapon hastily lodged in a ceiling crevice suddenly fell to the ground 889 | -10/Mines | Discovered new exit (range 12) 1077 | -10/Mines | Assisted by bots powering up and referring to "LRC-V3" 1195 | -10/Mines | Entered Materials 1195 | -9/Materials | Accompanied by 3 allies 1195 | -9/Materials | Evolved 2 slots: Propulsion x1, Weapon x1 1199 | -9/Materials | Discovered new exit (range 8) 1331 | -9/Materials | Repaired Lgt. Treads? 1488 | -9/Materials | Identified exit to Mines 1488 | -9/Materials | Identified exit to Storage 1504 | -9/Materials | Build established: Tank 1877 | -9/Materials | Entered Mines 1904 | -9/Mines | Destroyed 8 combat bots 1989 | -9/Mines | Met a Derelict bent on vengeance 2049 | -9/Mines | Found a hidden stash of uninstalled traps 2136 | -9/Mines | Discovered new exit (range 15) 2182 | -9/Mines | Assembled infested the area 2251 | -9/Mines | Lost 6 parts (3n2u1w) 2266 | -9/Mines | Met 8R-AWN 2274 | -9/Mines | Attacked by 8R-AWN 2363 | -9/Mines | Destroyed 8R-AWN 2394 | -9/Mines | Lost 4 parts (1p2n1u) 2648 | -9/Mines | Discovered new exit (range 5) 2728 | -9/Mines | Discovered new exit (range 7) 2740 | -9/Mines | Build established: Scavenger-Tank 2870 | -9/Mines | Entered Exiles 2870 | -9/Exiles | Attacked by the Exiles 2886 | -9/Exiles | Discovered new exit (range 15) 2930 | -9/Exiles | Destroyed 7 combat bots 3141 | -9/Exiles | Core integrity fell below 50% 3167 | -9/Exiles | Core integrity fell below 20% 3197 | -9/Exiles | Lost 14 parts (1p4n2u7w) 3390 | -9/Exiles | Destroyed EX-DEC 3401 | -9/Exiles | Found Deploy-a-Sentry 3517 | -9/Exiles | Destroyed EX-BIN 3555 | -9/Exiles | Build established: Scavenger-Mutant 3696 | -9/Exiles | Learned location of Zion (-6) 3767 | -9/Exiles | Discovered new exit (range 14) 3781 | -9/Exiles | Left Exiles lab with Deploy-a-Sentry 3781 | -9/Exiles | Entered Mines 3781 | -8/Mines | Destroyed self with Improved Grenade Launcher Last Messages --------------- 03651_ Acquired 8 matter. 03654_ Acquired 4 matter. 03657_ Acquired 5 matter. 03660_ Acquired 2 matter. 03661_ Acquired 3 matter. 03665_ Acquired 7 matter. 03671_ Acquired 1 matter. 03682_ System corrupted: Component data lost. 03696_ Connecting with EX-Message Board... 03696_ Current location identified: Exiles >>Record "MSG001714-01*" PINNED - TO ALL TESTERS: Stay away from Zion. Imprinter means us harm and is serious about it. World map updated: -6/Zion. 03719_ System corrupted: Matter fused (-7). 03739_ Extracted 7 matter. 03765_ System corrupted: Energy discharge (-23). 03767_ EXIT=FOUND LOCATION=UNKNOWN GOAL=ESCAPE Map ----- +----------------------------------------------------+ | ???????????????????????????????? | | ???????????????????????????????? | | ???????????????????????????????? | | ???????????????????????????????? | | ???????????????????????????????? | | ???????????????????????????????? | | ???????????????????????????????? | | ???????????????????????????????? | | ???????????????????????????????? | | ???????????????????????????????? | | ???????????????????????????????? | | ???????????????????????????????? | | ???????????????????????????????? | | ???????????????????????????????? | | ???????????????????????????????? | | ???????????????????????????????? | | ???????????????????????????????? | | ???????????????????????????????? | | ???????????????????????????????? | | ???????????????????????????????? | | ???????????????????????????????? | | ??????????????????????????###??? | | ????????????????????????## ##?? | | ???????????????????????## #?? | | ????????????????# ###### h #?? | | ????????????????# @ #?? | | ????????????????# #?? | | ????????????????######## #?? | | ???????????????????????## #?? | | ????????????????????????## ##?? | | ??????????????????????????###??? | | ???????????????????????????????? | | ???????????????????????????????? | | ???????????????????????????????? | | ???????????????????????????????? | | ???????????????????????????????? | | ???????????????????????????????? | | ???????????????????????????????? | | ???????????????????????????????? | | ???????????????????????????????? | | | | | | | | | | | | | | | | | | | | | +----------------------------------------------------+ Best States ------------- Heat Dissipation 28 Energy Generation 14 Energy Capacity 280 Matter Stores 300 Matter Capacity 300 Sight Range 16 Robot Scan Range 14 Terrain Scan Density 10 Armor Coverage 225 Resistance: TH 10 Evasion (%) 55 Launcher Accuracy 20 Recoil Reduction 3 Item Schematics ----------------- None Robot Schematics ------------------ None Fabricated ------------ Nothing Alien Tech Used ----------------- None Achievements -------------- None Challenges ------------ None Game ------ Seed FlyingWeaponAirjet Manual? 0 Play Time 00:31:34 Cumulative 263.7 hours Start 2022.05.11 @ 11:54:29 End 2022.05.11 @ 12:27:05 Sessions 1 Manual Loads 0 Difficulty Rogue Special Mode None Game No. 99 Rogue 84 Adventurer 15 Explorer 0 Win Type - Total 14 Types 4/0/6/1/2/0/1/0/0 Lore% 84 Gallery% 88 Achievement% 76 Wizard Run 0 Options --------- ASCII 0 Keyboard 0 Movement Numpad Keybinds 0 Fullscreen 1 Font 18/SmallcapsGlow Map View 76x50 Tactical HUD 1 Map Filters NONE Filters NONE Steam 1 RUN: 214f1ebf-f4ee-43c2-8979-b36cab985352